fUST/lending_fUST_20240930
["ID","MTS","AMOUNT","RATE_DAILY","PERIOD"]
[339546276,1727687462258,-635.52,0.00014896,2]
[339546277,1727687462267,-1407.08,0.00014896,2]
[339546278,1727687462279,-278.812365,0.00014896,2]
[339546279,1727687462288,-500.0,0.00014896,2]
[339546280,1727687462298,-278.812365,0.00014896,2]
[339546281,1727687462307,-500.0,0.00014896,2]
[339546282,1727687462316,-500.0,0.00014896,2]
[339546283,1727687462325,-500.0,0.00014896,2]
[339546284,1727687462335,-500.0,0.00014896,2]
[339546285,1727687462344,-500.0,0.00014896,2]
[339546286,1727687462354,-378.20918793,0.00014896,2]
[339546287,1727687462363,-500.0,0.00014896,2]
[339546288,1727687462372,-500.0,0.00014896,2]
[339546289,1727687462381,-500.0,0.00014896,2]
[339546290,1727687462390,-500.0,0.00014896,2]
[339546291,1727687462399,-259.982315,0.00014896,2]
[339546292,1727687462409,-1616.1,0.00014896,2]
[339546293,1727687462418,-259.982315,0.00014896,2]
[339546294,1727687462427,-500.0,0.00014896,2]
[339546295,1727687462436,-500.0,0.00014896,2]
[339546296,1727687462446,-500.0,0.00014896,2]
[339546297,1727687462457,-500.0,0.00014896,2]
[339546298,1727687462466,-875.59,0.00014896,2]
[339546299,1727687462476,-500.0,0.00014896,2]
[339546300,1727687462485,-500.0,0.00014896,2]
[339546301,1727687462495,-1251.42,0.00014896,2]
[339546302,1727687462505,-500.0,0.00014896,2]
[339546303,1727687462514,-500.0,0.00014896,2]
[339546304,1727687462527,-151.0,0.00014896,2]
[339546305,1727687462536,-552.649123,0.00014896,2]
[339546306,1727687462546,-500.0,0.00014896,2]
[339546307,1727687462555,-500.0,0.00014896,2]
[339546308,1727687462567,-552.649123,0.00014896,2]
[339546309,1727687462577,-153.850686,0.00014896,2]
[339546310,1727687462589,-539.27193798,0.00014896,2]
[339546311,1727687462599,-153.850686,0.00014896,2]
[339546312,1727687462608,-500.0,0.00014896,2]
[339546313,1727687462617,-151.0,0.00014896,2]
[339546314,1727687462627,-500.0,0.00014896,2]
[339546315,1727687462636,-500.0,0.00014896,2]
[339546316,1727687462646,-500.0,0.00014896,2]
[339546317,1727687462655,-151.0,0.00014896,2]
[339546318,1727687462664,-245.879029,0.00014896,2]
[339546319,1727687462674,-151.0,0.00014896,2]
[339546320,1727687462684,-500.0,0.00014896,2]
[339546321,1727687462693,-500.0,0.00014896,2]
[339546322,1727687462703,-519.20847534,0.00014896,2]
[339546323,1727687462712,-500.0,0.00014896,2]
[339546324,1727687462722,-345.63100935,0.00014896,2]
[339546325,1727687462731,-786.91,0.00014896,2]
[339546326,1727687462741,-500.0,0.00014896,2]
[339546327,1727687462750,-500.0,0.00014896,2]
[339546328,1727687462759,-151.0,0.00014896,2]
[339546329,1727687462769,-500.0,0.00014896,2]
[339546330,1727687462779,-500.0,0.00014896,2]
[339546331,1727687462789,-329.929165,0.00014896,2]
[339546332,1727687462799,-500.0,0.00014896,2]
[339546333,1727687462808,-885.95,0.00014896,2]
[339546334,1727687462818,-329.929165,0.00014896,2]
[339546335,1727687462827,-500.0,0.00014896,2]
[339546336,1727687462836,-500.0,0.00014896,2]
[339546337,1727687462846,-500.0,0.00014896,2]
[339546338,1727687462856,-1111.23,0.00014896,2]
[339546339,1727687462865,-500.0,0.00014896,2]
[339546340,1727687462875,-2658.86,0.00014896,2]
[339546341,1727687462885,-2080.472593,0.00014896,2]
[339546342,1727687462894,-500.0,0.00014896,2]
[339546343,1727687462904,-272.23618851,0.00014896,2]
[339546344,1727687462913,-2080.472593,0.00014896,2]
[339546345,1727687462923,-500.0,0.00014896,2]
[339546346,1727687462932,-641.4,0.00014896,2]
[339546347,1727687462942,-500.0,0.00014896,2]
[339546348,1727687462952,-500.0,0.00014896,2]
[339546349,1727687462961,-500.0,0.00014896,2]
[339546350,1727687462971,-500.0,0.00014896,2]
[339546351,1727687462980,-500.0,0.00014896,2]
[339546352,1727687462989,-500.0,0.00014896,2]
[339546353,1727687462998,-151.0,0.00014896,2]
[339546354,1727687463007,-151.0,0.00014896,2]
[339546355,1727687463016,-1323.68,0.00014896,2]
[339546356,1727687463027,-533.13,0.00014896,2]
[339546357,1727687463036,-151.0,0.00014896,2]
[339546358,1727687463046,-500.0,0.00014896,2]
[339546359,1727687463055,-500.0,0.00014896,2]
[339546360,1727687463066,-500.0,0.00014896,2]
[339546361,1727687463076,-500.0,0.00014896,2]
[339546362,1727687463085,-500.0,0.00014896,2]
[339546363,1727687463096,-500.0,0.00014896,2]
[339546364,1727687463105,-500.0,0.00014896,2]
[339546365,1727687463115,-500.0,0.00014896,2]
[339546366,1727687463125,-521.26,0.00014896,2]
[339546367,1727687463135,-540.53183156,0.00014896,2]
[339546368,1727687463145,-500.0,0.00014896,2]
[339546369,1727687463155,-2372.4,0.00014896,2]
[339546370,1727687463165,-500.0,0.00014896,2]
[339546371,1727687463175,-500.0,0.00014896,2]
[339546372,1727687463185,-500.0,0.00014896,2]
[339546373,1727687463196,-500.0,0.00014896,2]
[339546374,1727687463206,-1082.78,0.00014896,2]
[339546375,1727687463215,-500.0,0.00014896,2]
[339546376,1727687463225,-151.0,0.00014896,2]
[339546377,1727687463234,-151.0,0.00014896,2]
[339546378,1727687463244,-500.0,0.00014896,2]
[339546379,1727687463254,-500.0,0.00014896,2]
[339546380,1727687463263,-500.0,0.00014896,2]
[339546381,1727687463273,-500.0,0.00014896,2]
[339546382,1727687463284,-500.0,0.00014896,2]
[339546383,1727687463293,-500.0,0.00014896,2]
[339546384,1727687463304,-500.0,0.00014896,2]
[339546385,1727687463314,-500.0,0.00014896,2]
[339546386,1727687463325,-1349.3,0.00014896,2]
[339546387,1727687463335,-535.17,0.00014896,2]
[339546388,1727687463344,-500.0,0.00014896,2]
[339546389,1727687463354,-546.45,0.00014896,2]
[339546390,1727687463364,-551.56369003,0.00014896,2]
[339546391,1727687463375,-500.0,0.00014896,2]
[339546392,1727687463385,-896.122989,0.00014896,2]
[339546393,1727687463396,-896.122989,0.00014896,2]
[339546394,1727687463405,-500.0,0.00014896,2]
[339546395,1727687463415,-500.0,0.00014896,2]
[339546396,1727687463425,-500.0,0.00014896,2]
[339546397,1727687463434,-1993.848234,0.00014897,2]
[339546398,1727687463444,-1993.848234,0.00014897,2]
[339546399,1727687463453,-151.0,0.00014897,2]
[339546400,1727687463463,-156.130615,0.00014898,2]
[339546401,1727687463473,-151.0,0.00014898,2]
[339546402,1727687463483,-279.43679834,0.00014898,2]
[339546403,1727687463492,-677.77,0.00014898,2]
[339546404,1727687463675,-500.0,0.00014898,2]
[339546405,1727687463685,-631.29,0.00014898,2]
[339546406,1727687463695,-500.0,0.00014898,2]
[339546407,1727687463705,-1276.08,0.00014898,2]
[339546408,1727687463714,-1965.17,0.00014898,2]
[339546409,1727687463724,-1201.09,0.00014898,2]
[339546410,1727687463733,-500.0,0.00014898,2]
[339546411,1727687463743,-500.0,0.00014898,2]
[339546412,1727687463752,-610.86,0.00014898,2]
[339546413,1727687463762,-500.0,0.00014898,2]
[339546414,1727687463771,-536.73,0.00014898,2]
[339546415,1727687463781,-500.0,0.00014898,2]
[339546416,1727687463790,-1718.47,0.00014898,2]
[339546417,1727687463799,-2200.03,0.00014898,2]
[339546418,1727687463809,-500.0,0.00014898,2]
[339546419,1727687463818,-500.0,0.00014898,2]
[339546420,1727687463828,-500.0,0.00014898,2]
[339546421,1727687463837,-500.0,0.00014898,2]
[339546422,1727687463847,-500.0,0.00014898,2]
[339546423,1727687463856,-494.87,0.00014898,2]
[339546424,1727687463866,-500.0,0.00014898,2]
[339546425,1727687463875,-1065.82,0.00014898,2]
[339546426,1727687463884,-1182.31,0.00014898,2]
[339546427,1727687463894,-429.0,0.00014905,2]
[339546428,1727687463903,-151.0,0.00014907,2]
[339546429,1727687463913,-500.0,0.00014907,2]
[339546430,1727687463923,-500.0,0.00014907,2]
[339546431,1727687463932,-500.0,0.00014907,2]
[339546432,1727687463942,-500.0,0.00014907,2]
[339546433,1727687463952,-500.0,0.00014907,2]
[339546434,1727687463963,-500.0,0.00014907,2]
[339546435,1727687463972,-500.0,0.00014907,2]
[339546436,1727687463982,-500.0,0.00014907,2]
[339546437,1727687463992,-573.36,0.00014907,2]
[339546438,1727687464001,-558.62,0.00014907,2]
[339546439,1727687464011,-785.68,0.00014907,2]
[339546440,1727687464020,-500.0,0.00014907,2]
[339546441,1727687464031,-157.90528737,0.00014907,2]
[339546442,1727687464040,-500.0,0.00014907,2]
[339546443,1727687464050,-151.0,0.00014907,2]
[339546444,1727687464059,-500.0,0.00014908,2]
[339546445,1727687464068,-500.0,0.00014908,2]
[339546446,1727687464078,-500.0,0.00014908,2]
[339546447,1727687464087,-500.0,0.00014908,2]
[339546448,1727687464097,-500.0,0.00014908,2]
[339546449,1727687464106,-553.57,0.00014908,2]
[339546450,1727687464115,-500.0,0.00014908,2]
[339546451,1727687464125,-500.0,0.00014908,2]
[339546452,1727687464134,-500.0,0.00014908,2]
[339546453,1727687464143,-500.0,0.00014908,2]
[339546454,1727687464152,-500.0,0.00014908,2]
[339546455,1727687464163,-500.0,0.00014908,2]
[339546456,1727687464172,-500.0,0.00014908,2]
[339546457,1727687464181,-597.01,0.00014908,2]
[339546458,1727687464190,-500.0,0.00014908,2]
[339546459,1727687464199,-500.0,0.00014908,2]
[339546460,1727687464208,-500.0,0.00014908,2]
[339546461,1727687464217,-541.95,0.00014908,2]
[339546462,1727687464227,-500.0,0.00014908,2]
[339546463,1727687464236,-535.93486993,0.00014908,2]
[339546464,1727687464246,-500.0,0.00014908,2]
[339546465,1727687464255,-500.0,0.00014908,2]
[339546466,1727687464265,-500.0,0.00014908,2]
[339546467,1727687464276,-168.15030734,0.00014908,2]
[339546468,1727687464286,-500.0,0.00014908,2]
[339546469,1727687464295,-500.0,0.00014908,2]
[339546470,1727687464305,-500.0,0.00014908,2]
[339546471,1727687464314,-1108.02,0.00014908,2]
[339546472,1727687464323,-1806.28,0.00014908,2]
[339546473,1727687464332,-500.0,0.00014908,2]
[339546474,1727687464343,-500.0,0.00014908,2]
[339546475,1727687464352,-500.0,0.00014908,2]
[339546476,1727687464361,-500.0,0.00014908,2]
[339546477,1727687464371,-500.0,0.00014908,2]
[339546478,1727687464380,-501.45,0.00014908,2]
[339546479,1727687464390,-500.0,0.00014908,2]
[339546480,1727687464400,-500.0,0.00014908,2]
[339546481,1727687464409,-500.0,0.00014908,2]
[339546482,1727687464419,-638.95,0.00014908,2]
[339546483,1727687464429,-151.0,0.00014908,2]
[339546484,1727687464439,-873.0,0.00014908,2]
[339546485,1727687464448,-500.0,0.00014908,2]
[339546486,1727687464458,-500.0,0.00014908,2]
[339546487,1727687464467,-516.77598369,0.00014908,2]
[339546488,1727687464478,-500.0,0.00014908,2]
[339546489,1727687464487,-500.0,0.00014908,2]
[339546490,1727687464496,-500.0,0.00014908,2]
[339546491,1727687464506,-500.0,0.00014908,2]
[339546492,1727687464515,-500.0,0.00014908,2]
[339546493,1727687464530,-500.0,0.00014908,2]
[339546494,1727687464539,-151.0,0.00014908,2]
[339546495,1727687464549,-500.0,0.00014908,2]
[339546496,1727687464558,-500.0,0.00014908,2]
[339546497,1727687464568,-781.36,0.00014908,2]
[339546498,1727687464578,-500.0,0.00014908,2]
[339546499,1727687464587,-500.0,0.00014908,2]
[339546500,1727687464597,-500.0,0.00014908,2]
[339546501,1727687464606,-201.96308222,0.00014908,2]
[339546502,1727687464616,-500.0,0.00014908,2]
[339546503,1727687464625,-387.980848,0.00014908,2]
[339546504,1727687464635,-500.0,0.00014908,2]
[339546505,1727687464644,-387.980848,0.00014908,2]
[339546506,1727687464653,-500.0,0.00014908,2]
[339546507,1727687464662,-500.0,0.00014908,2]
[339546508,1727687464672,-500.0,0.00014908,2]
[339546509,1727687464682,-597.98,0.00014908,2]
[339546510,1727687464692,-500.0,0.00014908,2]
[339546511,1727687464701,-500.0,0.00014908,2]
[339546512,1727687464711,-2091.87,0.00014908,2]
[339546513,1727687464720,-503.74,0.00014908,2]
[339546514,1727687464729,-500.0,0.00014908,2]
[339546515,1727687464739,-608.41531021,0.00014908,2]
[339546516,1727687464748,-765.61,0.00014908,2]
[339546517,1727687464758,-1444.57,0.00014908,2]
[339546518,1727687464768,-500.0,0.00014908,2]
[339546519,1727687464778,-500.0,0.00014908,2]
[339546520,1727687464787,-500.0,0.00014908,2]
[339546521,1727687464797,-555.89727953,0.00014908,2]
[339546522,1727687464806,-500.0,0.00014908,2]
[339546523,1727687464815,-1516.72,0.00014908,2]
[339546524,1727687464825,-500.0,0.00014908,2]
[339546525,1727687464834,-500.0,0.00014908,2]
[339546526,1727687464844,-500.0,0.00014908,2]
[339546527,1727687464853,-1115.41,0.00014908,2]
[339546528,1727687464863,-500.0,0.00014908,2]
[339546529,1727687464872,-560.49,0.00014908,2]
[339546530,1727687464882,-500.0,0.00014908,2]
[339546531,1727687464891,-500.0,0.00014908,2]
[339546532,1727687464901,-750.34,0.00014908,2]
[339546533,1727687464910,-151.0,0.00014908,2]
[339546534,1727687464920,-500.0,0.00014908,2]
[339546535,1727687464930,-1915.62,0.00014908,2]
[339546536,1727687464940,-501.62,0.00014908,2]
[339546537,1727687464949,-500.0,0.00014908,2]
[339546538,1727687464959,-476.85314269,0.00014908,2]
[339546539,1727687464968,-151.0,0.00014908,2]
[339546540,1727687464978,-151.0,0.00014908,2]
[339546541,1727687464987,-247.236154,0.00014908,2]
[339546542,1727687464997,-500.0,0.00014908,2]
[339546543,1727687465007,-500.0,0.00014908,2]
[339546544,1727687465016,-500.0,0.00014908,2]
[339546545,1727687465027,-515.32558819,0.00014908,2]
[339546546,1727687465037,-500.0,0.00014908,2]
[339546547,1727687465047,-532.48111734,0.00014908,2]
[339546548,1727687465056,-500.0,0.00014908,2]
[339546549,1727687465065,-500.0,0.00014908,2]
[339546550,1727687465074,-500.0,0.00014908,2]
[339546551,1727687465083,-500.0,0.00014908,2]
[339546552,1727687465092,-646.26,0.00014908,2]
[339546553,1727687465101,-500.0,0.00014908,2]
[339546554,1727687465110,-722.45,0.00014908,2]
[339546555,1727687465120,-500.0,0.00014908,2]
[339546556,1727687465129,-500.0,0.00014908,2]
[339546557,1727687465139,-500.0,0.00014908,2]
[339546558,1727687465148,-641.77,0.00014908,2]
[339546559,1727687465158,-500.0,0.00014908,2]
[339546560,1727687465167,-500.0,0.00014908,2]
[339546561,1727687465176,-500.0,0.00014908,2]
[339546562,1727687465186,-500.0,0.00014908,2]
[339546563,1727687465195,-500.0,0.00014908,2]
[339546564,1727687465204,-595.22917255,0.00014908,2]
[339546565,1727687465213,-500.0,0.00014908,2]
[339546566,1727687465223,-500.0,0.00014908,2]
[339546567,1727687465232,-527.54,0.00014908,2]
[339546568,1727687465242,-500.0,0.00014908,2]
[339546569,1727687465251,-1284.23,0.00014908,2]
[339546570,1727687465260,-304.33439437,0.00014908,2]
[339546571,1727687465270,-500.0,0.00014908,2]
[339546572,1727687465280,-617.52,0.00014908,2]
[339546573,1727687465289,-500.0,0.00014908,2]
[339546574,1727687465299,-500.0,0.00014908,2]
[339546575,1727687465308,-500.0,0.00014908,2]
[339546576,1727687465317,-1429.954841,0.00014908,2]
[339546577,1727687465327,-500.0,0.00014908,2]
[339546578,1727687465337,-500.0,0.00014908,2]
[339546579,1727687465346,-1429.954841,0.00014908,2]
[339546580,1727687465355,-500.0,0.00014908,2]
[339546581,1727687465365,-500.0,0.00014908,2]
[339546582,1727687465374,-500.0,0.00014908,2]
[339546583,1727687465383,-500.0,0.00014908,2]
[339546584,1727687465395,-500.0,0.00014908,2]
[339546585,1727687465404,-562.98,0.00014908,2]
[339546586,1727687465414,-402.91093416,0.00014908,2]
[339546587,1727687465423,-252.26981,0.00014908,2]
[339546588,1727687465433,-587.64,0.00014908,2]
[339546589,1727687465442,-1067.55,0.00014908,2]
[339546590,1727687465451,-252.26981,0.00014908,2]
[339546591,1727687465461,-282.134629,0.00014908,2]
[339546592,1727687465471,-1596.86,0.00014908,2]
[339546593,1727687465480,-282.134629,0.00014908,2]
[339546594,1727687465489,-278.812365,0.00014908,2]
[339546595,1727687465499,-278.812365,0.00014908,2]
[339546596,1727687465508,-552.09,0.00014908,2]
[339546597,1727687465518,-500.0,0.00014908,2]
[339546598,1727687465534,-500.0,0.00014908,2]
[339546599,1727687465544,-500.0,0.00014908,2]
[339546600,1727687465553,-500.0,0.00014908,2]
[339546601,1727687465563,-895.63,0.00014908,2]
[339546602,1727687465573,-500.0,0.00014908,2]
[339546603,1727687465582,-500.0,0.00014908,2]
[339546604,1727687465592,-500.0,0.00014908,2]
[339546605,1727687465604,-500.0,0.00014908,2]
[339546606,1727687465613,-259.982315,0.00014908,2]
[339546607,1727687465623,-500.0,0.00014908,2]
[339546608,1727687465632,-259.982315,0.00014908,2]
[339546609,1727687465641,-500.0,0.00014908,2]
[339546610,1727687465651,-500.0,0.00014908,2]
[339546611,1727687465662,-517.74,0.00014908,2]
[339546612,1727687465671,-500.0,0.00014908,2]
[339546613,1727687465682,-500.0,0.00014908,2]
[339546614,1727687465691,-500.0,0.00014908,2]
[339546615,1727687465701,-1433.46,0.00014908,2]
[339546616,1727687465711,-552.649123,0.00014908,2]
[339546617,1727687465720,-151.0,0.00014908,2]
[339546618,1727687465731,-153.850686,0.00014908,2]
[339546619,1727687465740,-552.649123,0.00014908,2]
[339546620,1727687465750,-632.02,0.00014908,2]
[339546621,1727687465760,-153.850686,0.00014908,2]
[339546622,1727687465770,-500.0,0.00014908,2]
[339546623,1727687465782,-151.0,0.00014908,2]
[339546624,1727687465791,-500.0,0.00014908,2]
[339546625,1727687465800,-2266.38,0.00014908,2]
[339546626,1727687465810,-500.0,0.00014908,2]
[339546627,1727687465820,-503.32,0.00014908,2]
[339546628,1727687465829,-151.0,0.00014908,2]
[339546629,1727687465839,-151.0,0.00014908,2]
[339546630,1727687465849,-151.0,0.00014908,2]
[339546631,1727687465858,-151.0,0.00014908,2]
[339546632,1727687465869,-151.0,0.00014908,2]
[339546633,1727687465878,-151.0,0.00014908,2]
[339546634,1727687465888,-200.625568,0.00014908,2]
[339546635,1727687465898,-151.0,0.00014908,2]
[339546636,1727687465907,-896.122989,0.00014908,2]
[339546637,1727687465917,-896.122989,0.00014908,2]
[339546638,1727687465926,-500.0,0.00014909,2]
[339546639,1727687465936,-500.0,0.00014909,2]
[339546640,1727687465946,-500.0,0.00014909,2]
[339546641,1727687465955,-506.82132613,0.00014909,2]
[339546642,1727687465965,-500.0,0.00014909,2]
[339546643,1727687465974,-500.83519441,0.00014909,2]
[339546644,1727687465984,-151.0,0.00014909,2]
[339546645,1727687465994,-151.0,0.00014909,2]
[339546646,1727687466004,-500.0,0.00014909,2]
[339546647,1727687466013,-500.0,0.00014909,2]
[339546648,1727687466023,-500.0,0.00014909,2]
[339546649,1727687466036,-500.0,0.00014909,2]
[339546650,1727687466046,-500.0,0.00014909,2]
[339546651,1727687466056,-500.0,0.00014909,2]
[339546652,1727687466066,-517.11388092,0.00014909,2]
[339546653,1727687466076,-500.0,0.00014909,2]
[339546654,1727687466131,-496.22691245,0.00014909,2]
[339546655,1727687466141,-500.0,0.00014909,2]
[339546656,1727687466151,-500.0,0.00014909,2]
[339546657,1727687466161,-500.0,0.00014909,2]
[339546658,1727687466169,-500.0,0.00014909,2]
[339546659,1727687466178,-401.37044076,0.00014909,2]
[339546660,1727687466188,-500.0,0.00014909,2]
[339546661,1727687466197,-500.0,0.00014909,2]
[339546662,1727687466206,-500.0,0.00014909,2]
[339546663,1727687466216,-1993.848234,0.00014909,2]
[339546664,1727687466226,-1993.848234,0.00014909,2]
[339546665,1727687466235,-151.0,0.00014909,2]
[339546666,1727687466245,-151.0,0.00014909,2]
[339546667,1727687466255,-151.0,0.00014909,2]
[339546668,1727687466264,-151.0,0.00014909,2]
[339546669,1727687466273,-329.929165,0.00014909,2]
[339546670,1727687466286,-329.929165,0.00014909,2]
[339546671,1727687466295,-2080.472593,0.00014909,2]
[339546672,1727687466305,-2080.472593,0.00014909,2]
[339546673,1727687466315,-151.0,0.0001491,2]
[339546674,1727687466324,-151.0,0.0001492,2]
[339546675,1727687466334,-151.0,0.0001492,2]
[339546676,1727687466343,-151.0,0.00014923,2]
[339546677,1727687466353,-429.0,0.00014932,2]
[339546678,1727687466363,-429.0,0.00014959,2]
[339546679,1727687466373,-190.0,0.00014961,2]
[339546680,1727687466383,-151.0,0.00014964,2]
[339546681,1727687466392,-151.0,0.00014964,2]
[339546682,1727687466402,-387.980848,0.00014964,2]
[339546683,1727687466411,-387.980848,0.00014964,2]
[339546684,1727687466421,-234.165056,0.00014964,2]
[339546685,1727687466430,-151.0,0.00014964,2]
[339546686,1727687466440,-151.0,0.00014964,2]
[339546687,1727687466449,-1429.954841,0.00014964,2]
[339546688,1727687466459,-1429.954841,0.00014964,2]
[339546689,1727687466469,-252.26981,0.00014964,2]
[339546690,1727687466479,-252.26981,0.00014964,2]
[339546691,1727687466488,-282.134629,0.00014964,2]
[339546692,1727687466498,-282.134629,0.00014964,2]
[339546693,1727687466507,-278.812365,0.00014964,2]
[339546694,1727687466517,-278.812365,0.00014964,2]
[339546695,1727687466534,-151.0,0.00014964,2]
[339546696,1727687466543,-239.347131,0.00014964,2]
[339546697,1727687466553,-151.0,0.00014964,2]
[339546698,1727687466563,-151.0,0.00014964,2]
[339546699,1727687466574,-61874.66684037,0.00014964,2]
[339546700,1727687466931,-500.0,0.00014064,2]
[339546701,1727687466941,-398.87235149,0.00014074,2]
[339546702,1727687466951,-500.0,0.00014338,2]
[339546703,1727687466961,-500.0,0.00014612,2]
[339546704,1727687466971,-151.0,0.00014781,2]
[339546705,1727687466983,-500.0,0.00014886,2]
[339546706,1727687466993,-151.0,0.00014907,2]
[339546707,1727687467002,-151.0,0.00014964,2]
[339546708,1727687467012,-15596.45721685,0.00014964,2]
[339546709,1727687467022,-429.0,0.00014987,2]
[339546710,1727687467033,-3470.104961,0.00014994,2]
[339546711,1727687467043,-2401.3014,0.00014994,2]
[339546712,1727687467053,-8792.63534762,0.00015,2]
[339546713,1727687467292,-500.0,0.00014064,2]
[339546714,1727687467301,-500.0,0.00014073,2]
[339546715,1727687467311,-500.0,0.00014074,2]
[339546716,1727687467321,-500.0,0.00014074,2]
[339546717,1727687467330,-500.0,0.00014074,2]
[339546718,1727687467340,-500.0,0.00014338,2]
[339546719,1727687467349,-500.0,0.00014347,2]
[339546720,1727687467359,-280.19312851,0.00014348,2]
[339546721,1727687467369,-500.0,0.00014348,2]
[339546722,1727687467379,-500.0,0.00014348,2]
[339546723,1727687467388,-500.0,0.00014622,2]
[339546724,1727687467398,-86706.60753091,0.00015,2]
[339546725,1727687467407,-35757.23212618,0.00015,2]
[339546726,1727687467417,-1000.0,0.00015,15]
[339546727,1727687467427,-151.0,0.00015,2]
[339546728,1727687467437,-152.936672,0.00015,2]
[339546729,1727687467447,-151.0,0.00015,2]
[339546730,1727687467457,-1993.848234,0.00015,2]
[339546731,1727687467466,-1993.848234,0.00015,2]
[339546732,1727687467476,-151.0,0.00015,2]
[339546733,1727687467485,-259.982315,0.00015,2]
[339546734,1727687467495,-259.982315,0.00015,2]
[339546735,1727687467505,-552.649123,0.00015,2]
[339546736,1727687467515,-151.0,0.00015,2]
[339546737,1727687467525,-153.850686,0.00015,2]
[339546738,1727687467539,-552.649123,0.00015,2]
[339546739,1727687467549,-153.850686,0.00015,2]
[339546740,1727687467559,-151.0,0.00015,2]
[339546741,1727687467568,-151.0,0.00015,2]
[339546742,1727687467580,-292.09379,0.00015,2]
[339546743,1727687467589,-151.0,0.00015,2]
[339546744,1727687467598,-329.929165,0.00015,2]
[339546745,1727687467607,-329.929165,0.00015,2]
[339546746,1727687467618,-2080.472593,0.00015,2]
[339546747,1727687467629,-2080.472593,0.00015,2]
[339546748,1727687467639,-151.0,0.00015,2]
[339546749,1727687467649,-151.0,0.00015,2]
[339546750,1727687467659,-151.0,0.00015,2]
[339546751,1727687467668,-151.0,0.00015,2]
[339546752,1727687467678,-896.122989,0.00015,2]
[339546753,1727687467688,-896.122989,0.00015,2]
[339546754,1727687467698,-800.0,0.00015009,2]
[339546755,1727687467708,-1000.0,0.00015009,2]
[339546756,1727687467717,-800.0,0.00015009,2]
[339546757,1727687467726,-800.0,0.00015009,2]
[339546758,1727687467736,-800.0,0.00015009,2]
[339546759,1727687467745,-800.0,0.00015009,2]
[339546760,1727687467755,-800.0,0.00015009,2]
[339546761,1727687467764,-800.0,0.00015011,2]
[339546762,1727687467774,-800.0,0.00015011,2]
[339546763,1727687467785,-800.0,0.00015011,2]
[339546764,1727687467795,-800.0,0.00015011,2]
[339546765,1727687467805,-432.80982059,0.00015014,2]
[339546766,1727687467815,-163.641933,0.00015055,2]
[339546767,1727687467824,-5000.0,0.000151,2]
[339546768,1727687467833,-34665.2592487,0.00015113,2]
[339546769,1727687467842,-1600.867601,0.0001513,2]
[339546770,1727687467852,-500.0,0.0001516,2]
[339546771,1727687467861,-19689.26,0.0001516,2]
[339546772,1727687467870,-500.0,0.0001516,2]
[339546773,1727687467879,-3219.52,0.0001516,2]
[339546774,1727687467889,-675.58,0.0001516,2]
[339546775,1727687467898,-500.0,0.0001516,2]